Cogmind - Beta 14 @@@ ROGUE MODE // 2024.11.20 @ 00:21:21 Player: atomicthumbs Result: Destroyed by S-27 Virus with Autogun Performance ------------- Evolutions (6) 3000 Regions Visited (12) 2400 Robots Destroyed (70) 350 Value Destroyed (1718) 1718 Prototype IDs (32) 640 Alien Tech Used (0) 0 Bonus (314) 314 TOTAL SCORE: 8422 Bonus ------- Follower Combat Kills 14 Aligned with FarCom 300 Cogmind --------- Core Integrity 0/1150 Matter 165/300 Energy 204/300 System Corruption 5% Temperature Cool (0) Movement Core (50) Location -4/Factory Parts ------- > --- POWER (2) -------- (None) > --- PROPULSION (3) --- (None) > --- UTILITY (10) ----- Large Battery Improved Signal Interpreter Improved Target Analyzer > --- WEAPON (4) ------- (None) > --- INVENTORY (5) ---- Advanced Medium Treads Heavy Tesla Rifle Magnetic Acceleration Cannon Enhanced Gauss Cannon Hardcell Cannon Peak State ------------ > --- POWER ------------ Enhanced Nuclear Core Backup Power VII > --- PROPULSION ------- Armored Leg Potential Leg Centrium Wheel > --- UTILITY ---------- Improved Thermal Generator Improved Heat Sink Large Battery Advanced Weight Redist. System Improved Signal Interpreter Advanced Melee Analysis Suite Advanced ECM Suite Backup Plating VII Backup Plating VII Point Defense System > --- WEAPON ----------- Tesla Rifle Magnetic Acceleration Cannon Hardcell Cannon Chainsword > --- INVENTORY -------- Neutrino Core Potential Leg Advanced ECM Suite Improved Force Field Enhanced Gauss Cannon [Rating: 103] Favorites ----------- Power Enhanced Nuclear Core Engine Light Ion Engine Power Core Enhanced Nuclear Core Propulsion Potential Leg Leg Potential Leg Wheel Centrium Wheel Hover Unit Improved Gyrokinetic Inverter Flight Unit Nuclear Pulse Array Utility Improved Signal Interpreter Device Advanced ECM Suite Storage Large Storage Unit Processor Improved Signal Interpreter Protection Medium Armor Plating Weapon Heavy Particle Cannon Energy Gun Precision Beam Rifle Energy Cannon Heavy Particle Cannon Ballistic Gun Battle Rifle Ballistic Cannon Assault Cannon Launcher Mini Grenade Launcher Slashing Weapon Chainsword Build | -11 -10 -10 -10 -9 -8 -8 -7 -6 -6 -6 -5 -4 ------- Run | Yrd Mat Min Exi Min Mat Sto Fac Fac Low Low Fac Fac Slots Evolved 12 | . . . . . 4 . 2 2 . . 2 2 Power 1 | . . . . . . . . . . . 1 . Propulsion 1 | . . . . . . . . 1 . . . . Utility 8 | . . . . . 4 . . 1 . . 1 2 Weapon 2 | . . . . . . . 2 . . . . . Parts Attached 100 | . 3 . 3 4 19 16 8 3 6 . 2 36 Power 8 | . . . . . 2 1 1 . . . 1 3 Engine 3 | . . . . . 2 1 . . . . . . Core 5 | . . . . . . . 1 . . . 1 3 Reactor . | . . . . . . . . . . . . . Propulsion 9 | . . . 2 . . 2 1 . 1 . . 3 Treads . | . . . . . . . . . . . . . Leg 6 | . . . 2 . . 2 1 . 1 . . . Wheel 1 | . . . . . . . . . . . . 1 Hover 1 | . . . . . . . . . . . . 1 Flight 1 | . . . . . . . . . . . . 1 Utility 31 | . 1 . 1 2 10 3 2 2 1 . . 9 Device 13 | . 1 . . 1 2 1 2 2 . . . 4 Storage 6 | . . . 1 . 3 . . . 1 . . 1 Processor 3 | . . . . . 1 . . . . . . 2 Hackware . | . . . . . . . . . . . . . Protection 9 | . . . . 1 4 2 . . . . . 2 Artifact . | . . . . . . . . . . . . . Weapon 52 | . 2 . . 2 7 10 4 1 4 . 1 21 Energy Gun 11 | . 2 . . . . 3 2 . 1 . . 3 Energy Cannon 9 | . . . . . 3 2 1 . . . 1 2 Ballistic Gun 2 | . . . . . . . . 1 1 . . . Ballistic Cannon 19 | . . . . . 1 1 1 . 1 . . 15 Launcher 10 | . . . . 2 3 4 . . 1 . . . Special Weapon . | . . . . . . . . . . . . . Impact Weapon . | . . . . . . . . . . . . . Slashing Weapon 1 | . . . . . . . . . . . . 1 Piercing Weapon . | . . . . . . . . . . . . . Special Melee Weapon . | . . . . . . . . . . . . . Unidentified Prototypes 5 | . . . . . 2 1 1 . . . . 1 Corrupted Parts 1 | . . . . . . 1 . . . . . . System Corruption 5 | . . . . . . 5 . . . . . . Parts Lost 26 | . . . . . 1 2 . . 7 . . 16 Power 5 | . . . . . 1 . . . . . . 4 Propulsion 4 | . . . . . . . . . 1 . . 3 Utility 12 | . . . . . . 1 . . 2 . . 9 Weapon 5 | . . . . . . 1 . . 4 . . . Highest Loss Streak 9 | . . . . . 1 2 . . 4 . . 9 To Critical Strikes . | . . . . . . . . . . . . . Average Slot Usage (%) 92 | . 98 100 100 100 97 99 92 87 88 80 75 72 Engine 6 | . 14 14 14 14 7 9 2 . . . . . Core 2 | . . . . . . . 4 6 6 6 8 8 Leg 17 | . 28 28 28 28 18 18 15 13 13 13 11 6 Device 13 | . 12 14 14 2 5 9 19 21 26 26 23 17 Storage 10 | . 14 14 14 14 16 18 2 . 1 6 5 4 Processor 5 | . . . . . 6 9 7 6 6 6 5 11 Protection 11 | . . . . 11 24 17 15 13 8 . . 4 Energy Gun 6 | . 26 28 28 2 . 5 9 11 3 . . 1 Energy Cannon 3 | . . . . . 4 8 11 6 4 . 1 1 Ballistic Gun 1 | . 1 . . . . . . 1 5 6 5 1 Ballistic Cannon 3 | . . . . . 3 2 2 6 9 6 5 4 Launcher 5 | . . . . 25 10 1 . . . 6 5 . Peak Build Rating 103 | . 8 8 27 29 45 45 52 58 59 51 62 103 Average Rating 43 | . 7 8 21 28 39 43 47 54 56 50 55 71 On Entrance 34 | 6 6 8 8 27 29 42 45 52 58 50 51 62 Naked Turns . | . . . . . . . . . . . . . Heaviest Build 64 | 12 14 14 29 35 64 60 60 56 56 39 55 64 Greatest Support 70 | 20 20 20 60 60 60 60 54 54 70 55 55 55 Greatest Overweight (x) 2 | . . . . . 1 1 1 1 1 . . 2 Average Overweight (x) . | . . . . . . . . . . . . . Largest Inventory Capacity 15 | . 8 8 15 15 15 15 15 5 5 5 5 5 Average Capacity 10 | . 8 8 11 15 15 15 6 5 5 5 5 5 Most Carried 15 | . 6 8 11 15 15 15 15 5 5 5 5 5 Average Carried 9 | . 6 7 9 14 13 14 6 5 4 4 4 4 Final Capacity 15 | 8 8 8 15 15 15 15 5 5 5 5 5 5 Final Carried 15 | 6 6 8 11 15 15 15 5 5 3 5 5 5 Class Distribution -------------------- 66% | Mutant 22% | Tank 7% | Gunner Dominant Class ---------------- Mutant | -10/Materials Mutant | -10/Mines Mutant | -10/Exiles Mutant | -9/Mines Mutant | -8/Materials Mutant | -8/Storage Tank | -7/Factory Tank | -6/Factory Tank | -6/Lower Caves Gunner | -6/Lower Caves Derelict-Skirmisher | -5/Factory Mutant | -4/Factory Resources | -11 -10 -10 -10 -9 -8 -8 -7 -6 -6 -6 -5 -4 ----------- Run | Yrd Mat Min Exi Min Mat Sto Fac Fac Low Low Fac Fac Matter Collected 2199 | 197 23 10 30 165 307 512 213 63 332 . . 347 Remotely . | . . . . . . . . . . . . . Salvage Created 1718 | . 150 16 . 71 493 483 51 74 179 . . 201 Parts 115 | . 7 1 . 18 29 21 2 5 16 . . 16 Haulers Intercepted 7 | . . . . . 4 2 1 . . . . . Recyclers Shooed . | . . . . . . . . . . . . . Parts Field Recycled . | . . . . . . . . . . . . . Retrieved Matter . | . . . . . . . . . . . . . Parts Self-Destructed 13 | . . . . . . . . . 13 . . . Prevented 4 | . . . . . . . . . 4 . . . Kills | -11 -10 -10 -10 -9 -8 -8 -7 -6 -6 -6 -5 -4 ------- Run | Yrd Mat Min Exi Min Mat Sto Fac Fac Low Low Fac Fac Combat Hostiles Destroyed 51 | . 2 1 . 13 12 7 . 1 9 . . 6 Guns 9 | . 2 1 . . . 3 . . 2 . . 1 Cannons 17 | . . . . . 3 3 . 1 5 . . 5 AOE 24 | . . . . 13 8 1 . . 2 . . . Classes Destroyed 8 | . 3 1 . . 2 1 . . . . . 1 Worker 9 | . 2 . . 1 5 . . 1 . . . . Hauler 7 | . . . . . 4 2 1 . . . . . Watcher 3 | . 1 . . . . 2 . . . . . . Swarmer 31 | . . 1 . 13 5 . . . 9 . . 3 Grunt 9 | . 2 . . . 5 2 . . . . . . Sentry 7 | . . . . . 2 4 . 1 . . . . Hunter 1 | . . . . . . 1 . . . . . . Programmer 3 | . . . . . . . . . . . . 3 Best Kill Streak 6 | . 5 1 . 6 6 2 1 2 3 . . 2 Combat Bots Only 6 | . 2 1 . 6 5 2 . 1 3 . . 2 Max Kills in Single Turn 4 | . 2 1 . 4 3 1 1 1 1 . . 1 Gunslinging . | . . . . . . . . . . . . . Exploded 3 | . . . . 3 2 1 . . 1 . . . Melee . | . . . . . . . . . . . . . Uniques/NPCs Destroyed . | . . . . . . . . . . . . . Combat | -11 -10 -10 -10 -9 -8 -8 -7 -6 -6 -6 -5 -4 -------- Run | Yrd Mat Min Exi Min Mat Sto Fac Fac Low Low Fac Fac Hostile Shots Fired 611 | . 11 10 . 3 47 104 . 9 155 6 5 261 Missed 228 | . 6 2 . . 13 23 . 5 66 4 4 105 Damage Taken 6252 | . 67 72 . 35 611 1257 . 31 1269 38 17 2855 Core 1567 | . 16 18 . 13 52 141 . . 170 . . 1157 Absorbed by Shields 38 | . . . . . . . . . . . . 38 Ignored by Resistances 225 | . . . . . . 50 . 3 172 . . . Regen/Repaired (Parts) 85 | . . . . . 85 . . . . . . . Core Remaining (%) 87 | 100 . . . 81 . 64 100 . . 80 100 . Volleys Fired 166 | . 6 3 1 7 46 50 1 5 28 . . 19 Largest 4 | . 2 2 2 2 2 2 3 4 4 . . 3 Hottest 235 | . 90 105 105 63 114 136 211 235 204 . . 183 Shots Fired 330 | . 12 6 2 9 73 100 3 19 75 . . 31 Gun 92 | . 12 6 2 . . 19 1 10 34 . . 8 Cannon 172 | . . . . . 38 61 2 9 39 . . 23 Launcher 66 | . . . . 9 35 20 . . 2 . . . Special . | . . . . . . . . . . . . . Kinetic 132 | . . . . . 19 20 . 9 61 . . 23 Thermal 103 | . 6 3 1 . 19 60 3 5 6 . . . Explosive 48 | . . . . 9 23 16 . . . . . . Electromagnetic 47 | . 6 3 1 . 12 4 . 5 8 . . 8 Robot Hit Streak 6 | . 4 2 . 1 6 6 4 5 4 . . 6 Robot Miss Streak 7 | . 1 4 . 1 5 3 . 4 7 . . 6 Penetration Max . | . . . . . . . . . . . . . Secondary Targets . | . . . . . . . . . . . . . Shots Hit Robots 130 | . 9 2 . 1 28 36 3 8 27 . . 16 Core Hits 95 | . 7 1 . 13 34 15 1 3 11 . . 10 Critical Kills . | . . . . . . . . . . . . . Critical Parts Destroyed . | . . . . . . . . . . . . . Critical Strikes 6 | . 1 . . . . 1 1 . 1 . . 2 Burn 2 | . 1 . . . . . 1 . . . . . Blast 4 | . . . . . . 1 . . 1 . . 2 Melee Attacks 6 | . . . . . . . . . . . . 6 Impact . | . . . . . . . . . . . . . Slashing 6 | . . . . . . . . . . . . 6 Piercing . | . . . . . . . . . . . . . Sneak Attacks . | . . . . . . . . . . . . . Combat Hostiles . | . . . . . . . . . . . . . Follow-up Attacks . | . . . . . . . . . . . . . Damage Inflicted 5362 | . 272 28 . 732 1798 917 66 195 655 . . 699 Guns 779 | . 124 28 . . . 175 16 98 217 . . 121 Cannons 1932 | . . . . . 462 555 50 97 353 . . 415 Explosions 2459 | . 148 . . 732 1329 165 . . 85 . . . Melee 115 | . . . . . . . . . . . . 115 Ramming 77 | . . . . . 7 22 . . . . . 48 Kinetic 1446 | . . . . . 187 255 . 94 495 . . 415 Thermal 1188 | . 198 17 . 55 285 475 66 67 25 . . . Explosive 1634 | . . . . 677 957 . . . . . . . Electromagnetic 902 | . 74 11 . . 362 165 . 34 135 . . 121 Impact . | . . . . . . . . . . . . . Slashing 115 | . . . . . . . . . . . . 115 Piercing . | . . . . . . . . . . . . . Highest Corruption 6 | . . . . . 1 6 . . . . . 5 Average Corruption 3 | . . . . . 1 4 . . . . . 4 Corruption Purged . | . . . . . . . . . . . . . Corruption Blocked . | . . . . . . . . . . . . . Effects 39 | . . . . . 2 30 . . . . . 7 Message Errors 9 | . . . . . 1 6 . . . . . 2 Matter Fused 10 | . . . . . . 8 . . . . . 2 Heat Flow Errors 4 | . . . . . . 3 . . . . . 1 Energy Discharges 3 | . . . . . . 2 . . . . . 1 Data Loss (minor) 5 | . . . . . . 4 . . . . . 1 Data Loss (major) 2 | . . . . . 1 1 . . . . . . Misfires 3 | . . . . . . 3 . . . . . . Alerts 1 | . . . . . . 1 . . . . . . Weapon Failures 2 | . . . . . . 2 . . . . . . Overload Shots . | . . . . . . . . . . . . . Overflow Damage 89 | . . . . 62 10 . . 10 7 . . . Projectiles 22 | . . . . . 10 . . 10 2 . . . Explosions 67 | . . . . 62 . . . . 5 . . . Melee . | . . . . . . . . . . . . . Knockbacks 11 | . . . . . 2 . . . 6 . . 3 Impact 1 | . . . . . 1 . . . . . . . Kinetic 10 | . . . . . 1 . . . 6 . . 3 Secondary . | . . . . . . . . . . . . . Self-Inflicted Damage 197 | . . . . 10 155 . . . 18 . . 14 Shots 8 | . . . . 1 6 . . . 1 . . . Rammed 5 | . . . . . . . . . . . . 5 Targets Rammed 9 | . . . . . 2 1 . . . . . 6 Kicked 4 | . . . . . 2 1 . . . . . 1 Crushed . | . . . . . . . . . . . . . Highest Temperature 533 | . 207 135 45 12 304 521 162 177 533 . . 230 Average Temperature 120 | . 102 69 25 5 99 149 82 73 148 . . 50 Received Heat Transfer 1053 | . 57 . . . 216 549 . 12 93 18 9 99 Effects 19 | . . . . . 3 15 . . 1 . . . Shutdowns 4 | . . . . . . 3 . . 1 . . . Energy Bleed 3 | . . . . . . 3 . . . . . . Interference 6 | . . . . . 3 3 . . . . . . Matter Decay 4 | . . . . . . 4 . . . . . . Short Circuit 2 | . . . . . . 2 . . . . . . Siege Activations . | . . . . . . . . . . . . . Robots Corrupted 2 | . . . . . 1 1 . . . . . . Combat Hostiles 1 | . . . . . 1 . . . . . . . Parts Fried 7 | . . . . . 2 5 . . . . . . Impact Corruptions 1 | . . . . . . 1 . . . . . . Robots Melted . | . . . . . . . . . . . . . Combat Hostiles . | . . . . . . . . . . . . . Parts Melted 2 | . . . . . . 2 . . . . . . Heat Transferred 2063 | . 372 37 . 50 457 814 185 111 37 . . . Parts Sabotaged . | . . . . . . . . . . . . . Parts Stolen . | . . . . . . . . . . . . . Parts Stripped . | . . . . . . . . . . . . . Power Chain Reactions 3 | . 1 . . . 2 . . . . . . . Alert | -11 -10 -10 -10 -9 -8 -8 -7 -6 -6 -6 -5 -4 ------- Run | Yrd Mat Min Exi Min Mat Sto Fac Fac Low Low Fac Fac Peak Influence 380 | . 75 106 . 214 380 263 105 81 . . 30 214 Initial 137 | . . 28 . . 24 137 98 . . . . 14 Average 119 | . 27 62 . 164 204 153 64 14 . . 15 30 Maximum Alert Level 1 | . . . . 1 1 1 . . . . . 1 Low Security (%) 69 | . 100 100 . 31 35 69 100 100 . . 100 97 Level 1 30 | . . . . 68 64 30 . . . . . 2 Level 2 . | . . . . . . . . . . . . . Level 3 . | . . . . . . . . . . . . . Level 4 . | . . . . . . . . . . . . . Level 5 . | . . . . . . . . . . . . . High Security . | . . . . . . . . . . . . . Max Security . | . . . . . . . . . . . . . Squads Dispatched 7 | . . . . . 2 2 . . . . . 3 Investigation 2 | . . . . . . 1 . . . . . 1 Extermination 1 | . . . . . . . . . . . . 1 Reinforcement 2 | . . . . . 1 . . . . . . 1 Assault . | . . . . . . . . . . . . . Garrison 2 | . . . . . 1 1 . . . . . . Intercept . | . . . . . . . . . . . . . Searches Triggered . | . . . . . . . . . . . . . Construction Impeded . | . . . . . . . . . . . . . Haulers Reinforced . | . . . . . . . . . . . . . Active Scanning Responses . | . . . . . . . . . . . . . Cargo Convoy Interrupts . | . . . . . . . . . . . . . Stealth | -11 -10 -10 -10 -9 -8 -8 -7 -6 -6 -6 -5 -4 --------- Run | Yrd Mat Min Exi Min Mat Sto Fac Fac Low Low Fac Fac Distress Signals 6 | . 1 . . . . . . 1 . . 1 3 Communications Jammed . | . . . . . . . . . . . . . Distress Signals . | . . . . . . . . . . . . . Times Spotted 130 | . 6 3 . 4 18 19 . 3 20 9 5 43 Peak Tracking Total 11 | . 4 3 . 4 3 11 . 2 7 4 4 11 Tactical Retreats 23 | . . . . . 3 3 . . 6 3 1 7 Traps | -11 -10 -10 -10 -9 -8 -8 -7 -6 -6 -6 -5 -4 ------- Run | Yrd Mat Min Exi Min Mat Sto Fac Fac Low Low Fac Fac Traps Triggered 3 | . . . . . . 1 . . . . . 2 Indirectly . | . . . . . . . . . . . . . Trap Hack Attempts . | . . . . . . . . . . . . . Triggered . | . . . . . . . . . . . . . Disarmed . | . . . . . . . . . . . . . Reprogrammed . | . . . . . . . . . . . . . Reused . | . . . . . . . . . . . . . Traps Extracted . | . . . . . . . . . . . . . Installed . | . . . . . . . . . . . . . Triggered 1 | . . . . . . . . . . 1 . . Most Traps Carried 3 | . . 3 3 3 3 3 3 . . . . . Machines | -11 -10 -10 -10 -9 -8 -8 -7 -6 -6 -6 -5 -4 ---------- Run | Yrd Mat Min Exi Min Mat Sto Fac Fac Low Low Fac Fac Machines Disabled 11 | . . . . 2 4 5 . . . . . . Max in Single Turn 1 | . . . . 1 1 1 . . . . . . Garrison Access 1 | . . . . . 1 . . . . . . . Machines Repaired . | . . . . . . . . . . . . . Machines Dismantled . | . . . . . . . . . . . . . Machines Sabotaged . | . . . . . . . . . . . . . Overloaded Fab Kills . | . . . . . . . . . . . . . Hacking | -11 -10 -10 -10 -9 -8 -8 -7 -6 -6 -6 -5 -4 --------- Run | Yrd Mat Min Exi Min Mat Sto Fac Fac Low Low Fac Fac Machines Accessed 19 | . 1 . 1 . 3 8 3 1 . . . 2 Terminals 12 | . 1 . . . 1 7 1 1 . . . 1 Fabricators . | . . . . . . . . . . . . . Repair Stations 2 | . . . . . 1 . . . . . . 1 Recycling Units 2 | . . . . . . 1 1 . . . . . Scanalyzers 1 | . . . . . . . 1 . . . . . Garrison Access 1 | . . . . . 1 . . . . . . . Total Hacks 39 | . 1 . 1 . 9 17 5 2 . . . 4 Successful 18 | . 1 . 1 . 7 6 1 1 . . . 1 Failed 21 | . . . . . 2 11 4 1 . . . 3 Catastrophic 5 | . . . . . . 1 3 . . . . 1 Database Lockouts . | . . . . . . . . . . . . . Manual 2 | . . . 1 . . 1 . . . . . . Terminals 23 | . 1 . . . 2 15 1 2 . . . 2 Fabricators . | . . . . . . . . . . . . . Repair Stations 8 | . . . . . 6 . . . . . . 2 Recycling Units 4 | . . . . . . 2 2 . . . . . Scanalyzers 2 | . . . . . . . 2 . . . . . Garrison Access 1 | . . . . . 1 . . . . . . . Terminal Hacks 11 | . 1 . 1 . 2 6 . 1 . . . . Record 1 | . . . . . . . . 1 . . . . Prototype ID Bank 2 | . . . . . 1 1 . . . . . . Open Door 2 | . . . . . . 2 . . . . . . Locate Traps 1 | . . . . . . 1 . . . . . . Transport Status 1 | . . . . . 1 . . . . . . . Recall Investigation 1 | . . . . . . 1 . . . . . . Hauler Manifests 1 | . 1 . . . . . . . . . . . Zone Layout 1 | . . . . . . 1 . . . . . . Derelict Proto ID Bank 1 | . . . 1 . . . . . . . . . Fabricator Hacks . | . . . . . . . . . . . . . Repair Station Hacks 5 | . . . . . 4 . . . . . . 1 Scan Component 3 | . . . . . 2 . . . . . . 1 Repair 2 | . . . . . 2 . . . . . . . Recycling Unit Hacks . | . . . . . . . . . . . . . Scanalyzer 1 | . . . . . . . 1 . . . . . Insert Component 1 | . . . . . . . 1 . . . . . Garrison Access Hacks 1 | . . . . . 1 . . . . . . . Seal Access 1 | . . . . . 1 . . . . . . . Unauthorized Hacks . | . . . . . . . . . . . . . Terminals . | . . . . . . . . . . . . . Fabricators . | . . . . . . . . . . . . . Repair Stations . | . . . . . . . . . . . . . Recycling Units . | . . . . . . . . . . . . . Scanalyzers . | . . . . . . . . . . . . . Garrison Access . | . . . . . . . . . . . . . Data Cores Recovered . | . . . . . . . . . . . . . Used . | . . . . . . . . . . . . . Hacking Detections 14 | . 1 . . . 2 5 3 1 . . . 2 Full Trace Events 1 | . . . . . . 1 . . . . . . Feedback Events . | . . . . . . . . . . . . . Feedback Blocked . | . . . . . . . . . . . . . Robot Schematics Acquired . | . . . . . . . . . . . . . Robots Built . | . . . . . . . . . . . . . Authchips . | . . . . . . . . . . . . . Time . | . . . . . . . . . . . . . Total Robot Build Rating . | . . . . . . . . . . . . . Part Schematics Acquired . | . . . . . . . . . . . . . Parts Built . | . . . . . . . . . . . . . Authchips . | . . . . . . . . . . . . . Time . | . . . . . . . . . . . . . Total Part Build Rating . | . . . . . . . . . . . . . Parts Repaired 2 | . . . . . 2 . . . . . . . Time 64 | . . . . . 64 . . . . . . . Parts Recycled . | . . . . . . . . . . . . . Recycled Matter . | . . . . . . . . . . . . . Retrieved Matter . | . . . . . . . . . . . . . Retrieved Components . | . . . . . . . . . . . . . Parts Scanalyzed . | . . . . . . . . . . . . . Part Schematics Acquired . | . . . . . . . . . . . . . Parts Damaged . | . . . . . . . . . . . . . Bothacking | -11 -10 -10 -10 -9 -8 -8 -7 -6 -6 -6 -5 -4 ------------ Run | Yrd Mat Min Exi Min Mat Sto Fac Fac Low Low Fac Fac Used RIF Installer . | . . . . . . . . . . . . . Robots Hacked . | . . . . . . . . . . . . . Non-combat . | . . . . . . . . . . . . . Combat . | . . . . . . . . . . . . . Robot Hacks Applied . | . . . . . . . . . . . . . Relay Couplers Released . | . . . . . . . . . . . . . Fabnet Peak Effective % . | . . . . . . . . . . . . . Robots Rewired . | . . . . . . . . . . . . . Allies Hacked . | . . . . . . . . . . . . . Hacks Repelled . | . . . . . . . . . . . . . Allies | -11 -10 -10 -10 -9 -8 -8 -7 -6 -6 -6 -5 -4 -------- Run | Yrd Mat Min Exi Min Mat Sto Fac Fac Low Low Fac Fac Total Allies 2 | . . 2 . . . . . . . . . . Largest Group 2 | . . 2 2 . . . . . . . . . Highest-Rated Group 42 | . . 42 42 . . . . . . . . . Highest-Rated Ally 31 | . . 31 31 . . . . . . . . . Total Orders 1 | . . . . . . 1 . . . . . . EXPLORE 1 | . . . . . . 1 . . . . . . Ally Attacks 3 | . . 3 . . . . . . . . . . Total Damage 41 | . . 41 . . . . . . . . . . Kills 2 | . . 2 . . . . . . . . . . Allies Corrupted . | . . . . . . . . . . . . . Allies Melted . | . . . . . . . . . . . . . Intel | -11 -10 -10 -10 -9 -8 -8 -7 -6 -6 -6 -5 -4 ------- Run | Yrd Mat Min Exi Min Mat Sto Fac Fac Low Low Fac Fac Robot Analysis Total . | . . . . . . . . . . . . . Derelict Logs Recovered 6 | . . 1 . 2 . . . . 2 1 . . Drone Launches 2 | . . . . . . 2 . . . . . . Drone Recoveries . | . . . . . . . . . . . . . Exploration | -11 -10 -10 -10 -9 -8 -8 -7 -6 -6 -6 -5 -4 ------------- Run | Yrd Mat Min Exi Min Mat Sto Fac Fac Low Low Fac Fac Turns Passed 7305 | . 93 242 685 846 1064 1355 605 272 697 425 83 938 Spaces Moved 5916 | 1 59 166 695 812 651 942 480 201 533 453 100 823 Core 14 | . . . . . . . . . . . . 14 Treads . | . . . . . . . . . . . . . Legs 5511 | 1 59 166 695 812 651 942 480 201 533 453 100 418 Wheels 19 | . . . . . . . . . . . . 19 Hover 215 | . . . . . . . . . . . . 215 Flight 157 | . . . . . . . . . . . . 157 Fastest Speed 40 | 120 120 120 90 90 90 45 105 105 70 70 70 40 Average Speed 100 | 120 120 120 96 90 109 92 113 114 112 93 78 94 Slowest Speed 200 | 120 120 120 120 90 170 170 170 180 180 105 105 200 Overloaded Moves 620 | . . . . . . 75 . . 235 151 76 83 Propulsion Burnouts . | . . . . . . . . . . . . . Robots Hopped . | . . . . . . . . . . . . . Cave-ins Triggered . | . . . . . . . . . . . . . Exploration Rate (%) 39 | 2 19 45 91 99 29 60 10 6 71 53 2 23 Regions Visited 12 Branch Regions 6 Pre-discovered Areas 1 | . . . . . . . . . 1 . . . Known Exits Taken 7 | . . . . . 1 1 1 1 1 1 1 . Unknown Exits Taken 5 | 1 1 1 1 1 . . . . . . . . Scrap Searched 7 | . . . . 3 . . . . 3 1 . . Spaces Dug 10 | . . . . . . 7 . . . . . 3 Terrain Destroyed 377 | . 4 . . 87 194 78 . 1 4 . . 9 Melee . | . . . . . . . . . . . . . Projectile 43 | . . . . . 7 22 . 1 4 . . 9 AOE 334 | . 4 . . 87 187 56 . . . . . . Terrain Rammed . | . . . . . . . . . . . . . Walls Destroyed . | . . . . . . . . . . . . . Machines Disabled . | . . . . . . . . . . . . . Actions | -11 -10 -10 -10 -9 -8 -8 -7 -6 -6 -6 -5 -4 --------- Run | Yrd Mat Min Exi Min Mat Sto Fac Fac Low Low Fac Fac Total 6987 | . 68 204 707 916 925 1322 538 230 570 454 104 949 Wait 686 | . . 30 . 89 186 299 38 20 2 . 1 21 Move 5904 | . 58 165 694 811 650 941 479 200 532 452 99 823 Hop . | . . . . . . . . . . . . . Pick Up 42 | . . 4 4 4 8 7 3 . 1 2 2 7 Fast Attach 39 | . 2 . . 1 8 2 6 3 3 . . 14 Attach 26 | . . . . . 4 2 1 . 2 . 2 15 Detach 21 | . . . . . 4 . 2 . . . . 15 Swap 35 | . 1 . 3 3 7 12 1 . 1 . . 7 Drop 51 | . 1 2 3 1 10 8 7 2 1 . . 16 Fire 166 | . 6 3 1 7 46 50 1 5 28 . . 19 Melee 6 | . . . . . . . . . . . . 6 Ram 5 | . . . . . . . . . . . . 5 Kick 4 | . . . . . 2 1 . . . . . 1 Crush . | . . . . . . . . . . . . . Escape Stasis . | . . . . . . . . . . . . . Rewire 2 | . . . 2 . . . . . . . . . Trap . | . . . . . . . . . . . . . Miscellaneous . | . . . . . . . . . . . . . Route ------- -11/Scrapyard -10/Materials -10/Mines (discovered 2 exits: [*Mat] / *Exi) -10/Exiles (discovered 2 exits: [*Min x2]) -9/Mines (discovered 2 exits: *Mat x2) -8/Materials (discovered 2 exits: Fac / *Sto) -8/Storage -7/Factory -6/Factory -6/Lower Caves -6/Lower Caves -5/Factory -4/Factory (discovered 1 exit: *Res) History --------- Turn | Location | Event 1 | -11/Scrapyard | Discovered new exit (range 0) 1 | -11/Scrapyard | Entered Materials 70 | -10/Materials | Discovered new exit (range 16) 94 | -10/Materials | Entered Mines 135 | -10/Mines | Found a hidden stash of uninstalled traps 265 | -10/Mines | Learned 2 Materials zone layouts 275 | -10/Mines | Discovered new exit (range 6) 282 | -10/Mines | Received a Rocket Launcher from a helpful Derelict 298 | -10/Mines | Deemed a non-threat by the Exiles lab entrance 298 | -10/Mines | Discovered new exit (range 5) 306 | -10/Mines | Build established: Mutant 336 | -10/Mines | Entered Exiles 336 | -10/Exiles | Accompanied by 2 allies 366 | -10/Exiles | Led the pair of lost Derelicts to a safe place 369 | -10/Exiles | Met 8R-AWN 389 | -10/Exiles | Met EX-HEX 444 | -10/Exiles | Met EX-BIN 467 | -10/Exiles | Aligned with FarCom system 468 | -10/Exiles | Given EX-Vault access code 520 | -10/Exiles | Opened EX-Vault 525 | -10/Exiles | Found Potential Leg 528 | -10/Exiles | Found Potential Leg 547 | -10/Exiles | Warned to stay clear of 0b10 Research branches 577 | -10/Exiles | Met EX-DEC 653 | -10/Exiles | Discovered new exit (range 11) 740 | -10/Exiles | Visited The Gauntlet 904 | -10/Exiles | Discovered new exit (range 14) 1021 | -10/Exiles | Left Exiles lab with Potential Leg 1021 | -10/Exiles | Entered Mines 1028 | -9/Mines | Met a Derelict bent on vengeance 1300 | -9/Mines | Discovered new exit (range 10) 1306 | -9/Mines | Learned Materials trap positions 1314 | -9/Mines | Discovered new exit (range 9) 1867 | -9/Mines | Entered Materials 1867 | -8/Materials | Evolved 4 slots: Utility x4 1868 | -8/Materials | Identified exit to Factory 1869 | -8/Materials | Loaded intel: 19 trap records 1910 | -8/Materials | Repaired Med. Armor Plating 1942 | -8/Materials | Repaired Med. Armor Plating 2346 | -8/Materials | Discovered new exit (range 10) 2354 | -8/Materials | Identified exit to Storage 2369 | -8/Materials | Garrison activated, responded to threat 2931 | -8/Materials | Entered Storage 4215 | -8/Storage | Garrison activated, responded to threat 4274 | -8/Storage | Discovered exit to Factory (range 10) 4286 | -8/Storage | Entered Factory 4286 | -7/Factory | Evolved 2 slots: Weapon x2 4685 | -7/Factory | Build established: Tank 4800 | -7/Factory | Discovered new exit (range 9) 4820 | -7/Factory | Identified exit to Factory 4891 | -7/Factory | Entered another Factory area 4891 | -6/Factory | Evolved 2 slots: Propulsion x1, Utility x1 5141 | -6/Factory | Discovered new exit (range 11) 5161 | -6/Factory | Identified exit to Lower Caves 5163 | -6/Factory | Entered Lower Caves 5247 | -6/Lower Caves | Learned Factory stockpile data 5640 | -6/Lower Caves | Attracted the attention of an 0b10 base 5782 | -6/Lower Caves | Spotted B-75 Beast 5820 | -6/Lower Caves | Discovered new exit (range 16) 5855 | -6/Lower Caves | Lost 4 parts (1n3w) 5860 | -6/Lower Caves | Identified exit to Lower Caves 5860 | -6/Lower Caves | Entered another Lower Caves area 5868 | -6/Lower Caves | Discovered new exit (range 12) 5879 | -6/Lower Caves | Identified exit to Factory 5901 | -6/Lower Caves | Learned 4 Factory zone layouts 6034 | -6/Lower Caves | Encountered a Warlord checkpoint 6123 | -6/Lower Caves | Build established: Gunner 6285 | -6/Lower Caves | Entered Factory 6285 | -5/Factory | Evolved 2 slots: Power x1, Utility x1 6317 | -5/Factory | Discovered new exit (range 4) 6319 | -5/Factory | Identified exit to Factory 6368 | -5/Factory | Entered another Factory area 6368 | -4/Factory | Evolved 2 slots: Utility x2 6929 | -4/Factory | Discovered new exit (range 11) 6937 | -4/Factory | Identified exit to Research 7021 | -4/Factory | Lost 9 parts (2p2n5u) 7118 | -4/Factory | Build established: Mutant 7158 | -4/Factory | Core integrity fell below 50% 7258 | -4/Factory | Core integrity fell below 20% 7306 | -4/Factory | Destroyed by S-27 Virus with Autogun Last Messages --------------- 07239_ Acquired 7 matter. 07242_ Acquired 156 matter. 07243_ Identified Hvy. Tesla Rifle. 07244_ S-27 Virus destroyed. 07248_ Destroyed VTOL Module. 07254_ S-27 Virus destroyed. 07261_ S-27 Virus IFF system glitched. 07276_ W-44 Eye sends out distress signal. 07282_ P-70 Sage suffers critical hit (Blast). 07282_ P-70 Sage destroyed. 07283_ Acquired 3 matter. 07283_ Adv. Melee Analysis Suite destroyed. 07286_ Fusion Compressor destroyed. 07286_ U-05 Engineer builds a Wall. 07289_ Acquired 52 matter. 07297_ R-10 Processor collects Tesla Rifle. 07299_ Nuclear Pulse Array destroyed. 07300_ W-44 Eye sends out distress signal. 07301_ K-01 Serf cleans the Machine. 07305_ ALERT: Cargo convoy en route, clear transfer corridor. Map ----- +----------------------------------------------------+ | ?????????????????????????????????????????????????? | | ?????????????????????????????????????????????????? | | ?????????????????????????????????????????????????? | | ?????????????????????????????????????????????????? | | ?????????????????????????????????????????????????? | | ?????????????????????????????????????????????????? | | ?????????????????????????????????????????????????? | | ?????????????????????????????????????????????????? | | ?????????????????????????????????????????????????? | | ?????????????????????????????????????????????????? | | ?????????????????????????????????????????????????? | | ??????????????????????#??????????????????????????? | | ?????????????????????? ?????????????????????????? | | ?????????????????????? ???? #??????????????????? | | ??????????????????? ?"" ??? #??????????????????? | | ?????????????????? """ """ #??????????????????? | | ?????????????????# """ """ #??????????????????? | | ?????????????????# #??????????????????? | | ?????????????????# """ """ #??????????????????? | | ?????????????????# """ """ #??????????????????? | | ?????????????????# """ """ #??????????????????? | | ?????????????????# #??????????????????? | | ?????????????????# #??????????????????? | | ?????????????????# #??????????????????? | | ?????????????????#######+###########?????????????? | | ????????????????????# @ #" ??????????? | | ????????????????????# + ?????????? | | ????????????????????# u + Y????????? | | ????????????????????# + ?????????? | | ????????????????????# w #" ??????????? | | ????????????????????# t##########?????????????? | | ????????????????????# w # ??????????????????? | | ????????????????????# # ""???????????????????? | | ????????????????????+ u/ ?????????????????????? | | ????????????????????# #??????????????????????? | | ????????????????????# s #??????????????????????? | | ????????????????????# s #??????????????????????? | | ????????????????????#s ss #??????????????????????? | | ???################## #??????????????????????? | | ???# #s #??????????????????????? | | ???# =+! #??????????????????????? | | ???# #= +??????????????????????? | | ???# # #??????????????????????? | | ???# # #??????????????????????? | | ???# # #??????????????????????? | | ???# # #??????????????????????? | | ???# # #??????????????????????? | | ???# # #??????????????????????? | | ???####+############# #??????????????????????? | | ####### #???????????# #??????????????????????? | +----------------------------------------------------+ Best States ------------- Heat Dissipation 57 Energy Generation 35 Energy Capacity 700 Matter Stores 460 Matter Capacity 500 Sight Range 16 Terrain Scan Density 10 ECM Strength 2 Additional Mass Support 9 Armor Coverage 675 Resistance: KI 20 Point Defense Rating 80 Evasion (%) 66 Melee Accuracy 8 Target Analysis 6 Recoil Reduction 4 Item Schematics ----------------- None Robot Schematics ------------------ None Fabricated ------------ Nothing Alien Tech Used ----------------- None Achievements -------------- Dramatic Entrance Respectable Loadout Challenges ------------ None Game ------ Seed SpliceAssembledBattery Manual? 0 Play Time 01:48:01 Cumulative 13.2 hours Start 2024.11.19 @ 20:29:05 End 2024.11.20 @ 00:21:21 Sessions 2 Manual Loads 0 Difficulty Rogue Special Mode None Game No. 11 Rogue 11 Adventurer 0 Explorer 0 Win Type - Total 0 Types 0/0/0/0/0/0/0/0/0 Lore% 11 Gallery% 20 Achievement% 17 Wizard Run 0 Options --------- Layout 0 ASCII 0 Keyboard 0 Movement Mouse Keybinds 0 Fullscreen 2 Font 24/X11 Map View 76x50 Zoom Use 0% Tactical HUD 1 Map Filters NONE Filters NONE Steam 1 RUN: 1a59c848-9c26-410d-92a5-b5c6fdbfc777